[Event "NOR-ch Various 2019"]
[Site "Larvik"]
[Date "2019.07.06"]
[Round "1.1"]
[White "Mella, Aage"]
[Black "Strand, Kjetil"]
[Result "0-1"]
[ECO "A25"]
[WhiteElo "1699"]
[BlackElo "2035"]
[Annotator "NA"]
[PlyCount "96"]
[EventDate "2019.07.06"]
[EventType "swiss"]
[EventCountry "NOR"]
[SourceTitle "playchess.com"]
[Source "ChessBase"]
[SourceQuality "1"]
[TimeControl "40/5400+30:1800+30"]

1. c4 {[%emt 0:00:00]} e5 {[%emt 0:00:00]} 2. e3 {[%emt 0:00:00]} Nf6 {[%emt 0:00:40]} 3. a3 {[%emt 0:00:02]} Nc6 {[%emt 0:00:46]} 4. Nc3 {[%emt 0:00:57]} Be7 {[%emt 0:01:32]} 5. Nd5 {[%emt 0:02:39]} d6 {[%emt 0:01:51]} 6. Ne2 {[%emt 0:02:32]} O-O {[%emt 0:10:41]} 7. Nec3 {[%emt 0:02:23]} Re8 {[%emt 0:07:21]} 8. Be2 {[%emt 0:05:53]} Bf8 {[%emt 0:00:49]} 9. Nxf6+ {[%emt 0:02:39]} Qxf6 {[%emt 0:01:34]} 10. Nd5 {[%emt 0:02:29]} Qd8 {[%emt 0:00:13]} 11. O-O {[%emt 0:06:46]} Ne7 {[%emt 0:03:29]} 12. b4 {[%emt 0:02:55]} Ng6 {[%emt 0:01:19]} 13. Bb2 {[%emt 0:09:04]} c6 {[%emt 0:05:54]} 14. Nc3 {[%emt 0:00:07]} d5 {[%emt 0:01:32]} 15. d4 {[%emt 0:02:57]} Qg5 {[%emt 0:05:31]} 16. g3 {[%emt 0:12:37]} Bh3 {[%emt 0:04:36]} 17. f4 {[%emt 0:02:27]} exf4 {[%emt 0:09:18]} 18. exf4 {[%emt 0:01:34]} Qf6 {[%emt 0:02:20]} 19. Rf2 {[%emt 0:01:27]} Rad8 {[%emt 0:07:28]} 20. cxd5 {[%emt 0:03:56]} cxd5 {[%emt 0:00:39]} 21. Bf3 {[%emt 0:02:57]} Ne7 {[%emt 0:05:41]} 22. Qd2 {[%emt 0:03:23]} g6 {[%emt 0:03:56]} 23. Re1 {[%emt 0:03:54]} Bg7 {[%emt 0:01:13]} 24. Nxd5 {[%emt 0:03:42]} Nxd5 {[%emt 0:02:03]} 25. Rxe8+ {[%emt 0:00:20]} Rxe8 {[%emt 0:00:07]} 26. Bxd5 {[%emt 0:02:47]} Qe7 {[%emt 0:01:01]} 27. Bg2 {[%emt 0:00:52]} Bf5 {[%emt 0:02:47]} 28. Bf3 {[%emt 0:01:01]} Rc8 {[%emt 0:00:46]} 29. Re2 {[%emt 0:05:29]} Qd7 {[%emt 0:00:35]} 30. Be4 {[%emt 0:02:06]} Bxe4 {[%emt 0:03:48]} 31. Rxe4 {[%emt 0:00:23]} Qd5 {[%emt 0:00:06]} 32. Qe2 {[%emt 0:05:03]} Bf6 {[%emt 0:00:11]} 33. Re8+ {[%emt 0:00:38]} Rxe8 {[%emt 0:00:05]} 34. Qxe8+ {[%emt 0:00:49]} Kg7 {[%emt 0:00:07]} 35. Qe3 {[%emt 0:00:44]} h5 {[%emt 0:01:04]} 36. h3 {[%emt 0:01:44]} Qa2 {[%emt 0:01:14]} 37. Qc3 {[%emt 0:00:50]} Qb1+ {[%emt 0:00:23]} 38. Kh2 {[%emt 0:04:14]} Qd1 {[%emt 0:02:18]} 39. Kg2 {[%emt 0:02:25]} Qe2+ {[%emt 0:00:51]} 40. Kg1 {[%emt 0:01:00]} b5 {[%emt 0:01:22]} 41. Qc1 {[%emt 0:07:22]} a6 {[%emt 0:02:03]} 42. Qc3 {[%emt 0:05:44]} h4 {[%emt 0:01:40]} 43. g4 {[%emt 0:03:40]} Kh7 {[%emt 0:00:44]} 44. Ba1 {[%emt 0:11:59]} Qe4 {[%emt 0:02:41]} 45. Qd2 {[%emt 0:00:37]} Qb1+ {[%emt 0:00:43]} 46. Kg2 {[%emt 0:00:33]} Qxa1 {[%emt 0:01:05]} 47. f5 {[%emt 0:01:51]} Qxa3 {[%emt 0:02:43]} 48. fxg6+ {[%emt 0:00:49]} fxg6 {[%emt 0:00:39]} 0-1

[Event "NOR-ch Various 2019"]
[Site "Larvik"]
[Date "2019.07.06"]
[Round "1.2"]
[White "Stake-Larsen, Gunnar"]
[Black "Habberstad, Odd"]
[Result "1-0"]
[ECO "A53"]
[WhiteElo "1976"]
[BlackElo "1694"]
[Annotator "NA"]
[PlyCount "53"]
[EventDate "2019.07.06"]
[EventType "swiss"]
[EventCountry "NOR"]
[SourceTitle "playchess.com"]
[Source "ChessBase"]
[SourceQuality "1"]
[TimeControl "40/5400+30:1800+30"]

1. d4 {[%emt 0:00:00]} Nf6 {[%emt 0:00:00]} 2. c4 {[%emt 0:00:00]} d6 {[%emt 0:00:00]} 3. Nc3 {[%emt 0:01:02]} e5 {[%emt 0:00:28]} 4. dxe5 {[%emt 0:04:23]} dxe5 {[%emt 0:00:10]} 5. Qxd8+ {[%emt 0:00:53]} Kxd8 {[%emt 0:00:30]} 6. Nf3 {[%emt 0:06:19]} Nbd7 {[%emt 0:00:47]} 7. Bg5 {[%emt 0:04:01]} c6 {[%emt 0:01:25]} 8. O-O-O {[%emt 0:03:52]} Kc7 {[%emt 0:00:15]} 9. e3 {[%emt 0:05:30]} Bb4 {[%emt 0:02:05]} 10. Na4 {[%emt 0:14:05]} Re8 {[%emt 0:14:44]} 11. a3 {[%emt 0:03:31]} Bf8 {[%emt 0:00:09]} 12. Bh4 {[%emt 0:04:43]} Ne4 {[%emt 0:18:45]} 13. Bd3 {[%emt 0:07:29]} Ndc5 {[%emt 0:04:01]} 14. Nxc5 {[%emt 0:03:59]} Nxc5 {[%emt 0:00:07]} 15. Bc2 {[%emt 0:00:51]} Bg4 {[%emt 0:05:13]} 16. h3 {[%emt 0:02:52]} Bxf3 {[%emt 0:06:30]} 17. gxf3 {[%emt 0:00:10]} g6 {[%emt 0:00:17]} 18. Rd2 {[%emt 0:02:20]} a5 {[%emt 0:08:25]} 19. Rhd1 {[%emt 0:03:15]} a4 {[%emt 0:01:21]} 20. Bf6 {[%emt 0:02:14]} Rac8 {[%emt 0:06:41]} 21. Kb1 {[%emt 0:01:35]} Kb8 {[%emt 0:00:58]} 22. Bd8 {[%emt 0:01:48]} b5 {[%emt 0:02:13]} 23. cxb5 {[%emt 0:04:33]} cxb5 {[%emt 0:00:07]} 24. Bh4 {[%emt 0:02:27]} Kb7 {[%emt 0:02:21]} 25. Rd5 {[%emt 0:02:49]} Kb6 {[%emt 0:02:30]} 26. Bf6 {[%emt 0:01:33]} Rc6 {[%emt 0:06:18]} 27. Bxe5 {[%emt 0:04:01]} 1-0

[Event "NOR-ch Various 2019"]
[Site "Larvik"]
[Date "2019.07.06"]
[Round "1.3"]
[White "Kyrkjebo, Eirik"]
[Black "Steinskog, Tom"]
[Result "1-0"]
[ECO "C62"]
[WhiteElo "1598"]
[BlackElo "1454"]
[Annotator "NA"]
[PlyCount "32"]
[EventDate "2019.07.06"]
[EventType "swiss"]
[EventCountry "NOR"]
[SourceTitle "playchess.com"]
[Source "ChessBase"]
[SourceQuality "1"]
[TimeControl "40/5400+30:1800+30"]

1. e4 {[%emt 0:00:00]} e5 {[%emt 0:00:00]} 2. Nf3 {[%emt 0:00:00]} Nc6 {[%emt 0:00:00]} 3. Nc3 {[%emt 0:00:00]} Nf6 {[%emt 0:01:02]} 4. Bb5 {[%emt 0:00:08]} d6 {[%emt 0:00:58]} 5. d4 {[%emt 0:00:13]} exd4 {[%emt 0:00:29]} 6. Nxd4 {[%emt 0:00:03]} Bd7 {[%emt 0:00:18]} 7. Bxc6 {[%emt 0:00:41]} bxc6 {[%emt 0:01:19]} 8. Qf3 {[%emt 0:01:37]} c5 {[%emt 0:04:00]} 9. Nf5 {[%emt 0:03:30]} g6 {[%emt 0:02:14]} 10. Nh6 {[%emt 0:04:56]} Bxh6 {[%emt 0:01:53]} 11. Bxh6 {[%emt 0:00:13]} Ng4 {[%emt 0:00:08]} 12. Bf4 {[%emt 0:06:07]} O-O {[%emt 0:02:09]} 13. h3 {[%emt 0:00:47]} Nf6 {[%emt 0:08:58]} 14. Bg5 {[%emt 0:00:54]} Kg7 {[%emt 0:00:40]} 15. Nd5 {[%emt 0:01:50]} Qb8 {[%emt 0:04:59]} 16. Qxf6+ {[%emt 0:01:43]} Kg8 {[%emt 0:00:04]} 1-0

[Event "NOR-ch Various 2019"]
[Site "Larvik"]
[Date "2019.07.06"]
[Round "1.4"]
[White "Ringstad, Kjell"]
[Black "Tidemann-Andersen, Leif"]
[Result "1-0"]
[ECO "C55"]
[WhiteElo "1450"]
[BlackElo "1587"]
[Annotator "NA"]
[PlyCount "109"]
[EventDate "2019.07.06"]
[EventType "swiss"]
[EventCountry "NOR"]
[SourceTitle "playchess.com"]
[Source "ChessBase"]
[SourceQuality "1"]
[TimeControl "40/5400+30:1800+30"]

1. e4 {[%emt 0:00:00]} e5 {[%emt 0:00:19]} 2. Nf3 {[%emt 0:00:00]} Nc6 {[%emt 0:03:26]} 3. Bc4 {[%emt 0:00:24]} Bc5 {[%emt 0:03:22]} 4. Nc3 {[%emt 0:01:40]} Nf6 {[%emt 0:01:39]} 5. h3 {[%emt 0:02:17]} O-O {[%emt 0:05:21]} 6. a3 {[%emt 0:00:50]} d6 {[%emt 0:04:12]} 7. O-O {[%emt 0:01:24]} Nd4 {[%emt 0:04:52]} 8. Re1 {[%emt 0:04:04]} c6 {[%emt 0:03:23]} 9. Na4 {[%emt 0:03:12]} Nxf3+ {[%emt 0:04:00]} 10. Qxf3 {[%emt 0:00:49]} Bd4 {[%emt 0:03:12]} 11. Nc3 {[%emt 0:09:00]} b5 {[%emt 0:04:18]} 12. Bb3 {[%emt 0:01:24]} a5 {[%emt 0:03:37]} 13. Ne2 {[%emt 0:03:38]} Bb6 {[%emt 0:05:32]} 14. d3 {[%emt 0:01:10]} h6 {[%emt 0:01:45]} 15. Be3 {[%emt 0:04:12]} Bb7 {[%emt 0:03:01]} 16. Ng3 {[%emt 0:01:44]} Bxe3 {[%emt 0:02:05]} 17. Rxe3 {[%emt 0:01:20]} Qc7 {[%emt 0:03:02]} 18. Nf5 {[%emt 0:01:27]} Kh7 {[%emt 0:02:58]} 19. Qg3 {[%emt 0:02:55]} Rg8 {[%emt 0:02:08]} 20. Qh4 {[%emt 0:02:33]} Bc8 {[%emt 0:04:07]} 21. Nxh6 {[%emt 0:05:08]} gxh6 {[%emt 0:00:39]} 22. Qxf6 {[%emt 0:00:29]} Ra7 {[%emt 0:02:52]} 23. Rf3 {[%emt 0:02:01]} Rg7 {[%emt 0:01:01]} 24. Qh4 {[%emt 0:10:47]} f5 {[%emt 0:09:10]} 25. exf5 {[%emt 0:04:02]} d5 {[%emt 0:02:01]} 26. g4 {[%emt 0:05:08]} Rg5 {[%emt 0:04:33]} 27. Kh1 {[%emt 0:06:16]} Qf7 {[%emt 0:03:59]} 28. Re1 {[%emt 0:02:23]} Qf6 {[%emt 0:02:31]} 29. c3 {[%emt 0:05:09]} h5 {[%emt 0:02:16]} 30. Rfe3 {[%emt 0:02:48]} Rxf5 {[%emt 0:02:12]} 31. Qxf6 {[%emt 0:04:28]} Rxf6 {[%emt 0:00:05]} 32. f3 {[%emt 0:01:35]} hxg4 {[%emt 0:00:26]} 33. hxg4 {[%emt 0:01:03]} Raf7 {[%emt 0:00:36]} 34. Bd1 {[%emt 0:00:53]} d4 {[%emt 0:03:31]} 35. Rxe5 {[%emt 0:02:21]} Rf4 {[%emt 0:00:43]} 36. Re7 {[%emt 0:03:20]} Kg7 {[%emt 0:00:25]} 37. Rxf7+ {[%emt 0:01:06]} Kxf7 {[%emt 0:00:05]} 38. Re4 {[%emt 0:01:28]} Rxe4 {[%emt 0:01:01]} 39. dxe4 {[%emt 0:00:40]} d3 {[%emt 0:03:13]} 40. Kg2 {[%emt 0:00:32]} a4 {[%emt 0:00:24]} 41. Kf2 {[%emt 0:30:43]} c5 {[%emt 0:31:27]} 42. c4 {[%emt 0:02:28]} bxc4 {[%emt 0:00:26]} 43. Bxa4 {[%emt 0:00:20]} Kf6 {[%emt 0:00:49]} 44. Bb5 {[%emt 0:00:58]} Be6 {[%emt 0:00:00]} 45. Ke3 {[%emt 0:00:00]} Ke7 {[%emt 0:00:00]} 46. a4 {[%emt 0:00:00]} Kd8 {[%emt 0:00:00]} 47. g5 {[%emt 0:00:00]} Kc7 {[%emt 0:00:00]} 48. f4 {[%emt 0:00:00]} Kb6 {[%emt 0:00:00]} 49. f5 {[%emt 0:00:00]} Bg8 {[%emt 0:00:00]} 50. g6 {[%emt 0:00:13]} Ka5 {[%emt 0:00:12]} 51. f6 {[%emt 0:00:32]} Kb4 {[%emt 0:00:28]} 52. f7 {[%emt 0:00:14]} Bxf7 {[%emt 0:00:09]} 53. gxf7 {[%emt 0:00:00]} Kb3 {[%emt 0:00:00]} 54. f8=Q {[%emt 0:00:35]} Kxb2 {[%emt 0:00:37]} 55. Bxc4 {[%emt 0:01:15]} 1-0

[Event "NOR-ch Various 2019"]
[Site "Larvik"]
[Date "2019.07.06"]
[Round "1.5"]
[White "Madsen, Morten L"]
[Black "Sorensen, Simen"]
[Result "0-1"]
[ECO "B21"]
[WhiteElo "1863"]
[BlackElo "1979"]
[Annotator "NA"]
[PlyCount "124"]
[EventDate "2019.07.06"]
[EventType "swiss"]
[EventCountry "NOR"]
[SourceTitle "playchess.com"]
[Source "ChessBase"]
[SourceQuality "1"]
[TimeControl "40/5400+30:1800+30"]

1. e4 {[%emt 0:00:00]} c5 {[%emt 0:00:00]} 2. d4 {[%emt 0:00:00]} cxd4 {[%emt 0:00:00]} 3. c3 {[%emt 0:00:00]} dxc3 {[%emt 0:00:29]} 4. Nxc3 {[%emt 0:00:00]} Nc6 {[%emt 0:03:18]} 5. Nf3 {[%emt 0:00:39]} e6 {[%emt 0:05:43]} 6. Bc4 {[%emt 0:00:51]} a6 {[%emt 0:08:02]} 7. O-O {[%emt 0:00:32]} d6 {[%emt 0:00:14]} 8. Qe2 {[%emt 0:00:55]} Nf6 {[%emt 0:04:05]} 9. Rd1 {[%emt 0:01:11]} Qc7 {[%emt 0:03:20]} 10. Bf4 {[%emt 0:01:20]} Ne5 {[%emt 0:11:06]} 11. Bb3 {[%emt 0:08:34]} Be7 {[%emt 0:02:07]} 12. Rac1 {[%emt 0:01:02]} Qb8 {[%emt 0:01:34]} 13. Nd4 {[%emt 0:26:38]} O-O {[%emt 0:10:03]} 14. Bg3 {[%emt 0:05:22]} Nc6 {[%emt 0:17:16]} 15. Nxc6 {[%emt 0:06:26]} bxc6 {[%emt 0:00:14]} 16. e5 {[%emt 0:00:27]} Nd5 {[%emt 0:04:50]} 17. Ne4 {[%emt 0:12:56]} dxe5 {[%emt 0:01:13]} 18. Rxc6 {[%emt 0:00:28]} Bb7 {[%emt 0:01:18]} 19. Rcc1 {[%emt 0:01:23]} Rc8 {[%emt 0:05:10]} 20. Rxc8+ {[%emt 0:01:25]} Bxc8 {[%emt 0:02:00]} 21. Bxd5 {[%emt 0:02:27]} exd5 {[%emt 0:00:04]} 22. Rxd5 {[%emt 0:00:36]} f6 {[%emt 0:00:28]} 23. Nc5 {[%emt 0:05:29]} Qb5 {[%emt 0:04:57]} 24. Qxb5 {[%emt 0:08:51]} axb5 {[%emt 0:00:01]} 25. a3 {[%emt 0:01:29]} b4 {[%emt 0:00:29]} 26. f4 {[%emt 0:00:31]} bxa3 {[%emt 0:00:32]} 27. bxa3 {[%emt 0:00:09]} Ra5 {[%emt 0:00:53]} 28. Kf1 {[%emt 0:08:45]} Rxc5 {[%emt 0:00:51]} 29. Rxc5 Bxc5 {[%emt 0:00:01]} 30. fxe5 {[%emt 0:00:21]} Ba6+ {[%emt 0:00:20]} 31. Ke1 {[%emt 0:00:20]} fxe5 {[%emt 0:00:15]} 32. Bxe5 {[%emt 0:00:02]} Bxa3 {[%emt 0:00:47]} 33. Bd4 {[%emt 0:00:07]} Bd6 {[%emt 0:00:18]} 34. g3 {[%emt 0:00:29]} Kf7 {[%emt 0:00:07]} 35. Kf2 {[%emt 0:00:03]} g5 {[%emt 0:00:18]} 36. Be3 {[%emt 0:02:20]} Kg6 {[%emt 0:00:18]} 37. Bd4 {[%emt 0:00:12]} Kf5 {[%emt 0:00:26]} 38. Bb6 {[%emt 0:01:49]} Bb7 {[%emt 0:00:25]} 39. Ba7 {[%emt 0:01:14]} h5 {[%emt 0:00:58]} 40. Bb6 {[%emt 0:00:20]} Kg4 {[%emt 0:00:29]} 41. Bd4 {[%emt 0:30:31]} h4 {[%emt 0:30:14]} 42. gxh4 {[%emt 0:01:06]} Kxh4 {[%emt 0:00:22]} 43. Bf6 {[%emt 0:01:05]} Bxh2 {[%emt 0:00:05]} 44. Bxg5+ {[%emt 0:00:11]} Kxg5 {[%emt 0:00:02]} 45. Ke3 {[%emt 0:00:09]} Be5 {[%emt 0:00:07]} 46. Kd3 {[%emt 0:00:04]} Bd5 {[%emt 0:00:05]} 47. Ke3 {[%emt 0:00:17]} Kf5 {[%emt 0:00:13]} 48. Kd3 {[%emt 0:00:05]} Kf4 {[%emt 0:00:12]} 49. Kd2 {[%emt 0:00:11]} Ke4 {[%emt 0:00:13]} 50. Ke2 {[%emt 0:00:08]} Bd4 {[%emt 0:00:08]} 51. Kd2 {[%emt 0:00:08]} Bc4 {[%emt 0:00:25]} 52. Kc2 {[%emt 0:00:03]} Ke3 {[%emt 0:00:05]} 53. Kd1 {[%emt 0:00:15]} Bd3 {[%emt 0:00:18]} 54. Kc1 {[%emt 0:00:32]} Bc3 {[%emt 0:00:18]} 55. Kd1 {[%emt 0:00:16]} Kd4 {[%emt 0:00:03]} 56. Kc1 {[%emt 0:00:11]} Kc4 {[%emt 0:00:05]} 57. Kd1 {[%emt 0:00:08]} Kb3 {[%emt 0:00:08]} 58. Kc1 {[%emt 0:00:03]} Be2 {[%emt 0:00:07]} 59. Kb1 {[%emt 0:00:17]} Bd2 {[%emt 0:00:04]} 60. Ka1 {[%emt 0:00:12]} Be3 {[%emt 0:00:10]} 61. Kb1 {[%emt 0:00:09]} Bd3+ {[%emt 0:00:03]} 62. Ka1 {[%emt 0:00:06]} Bd4# {[%emt 0:00:02]} 0-1

[Event "NOR-ch Various 2019"]
[Site "Larvik"]
[Date "2019.07.06"]
[Round "1.6"]
[White "Kvendseth, Cornelius"]
[Black "Kyrkjebo, Marte B."]
[Result "1/2-1/2"]
[ECO "D02"]
[WhiteElo "1964"]
[BlackElo "1860"]
[Annotator "NA RC"]
[PlyCount "149"]
[EventDate "2019.07.06"]
[EventType "swiss"]
[EventCountry "NOR"]
[SourceTitle "playchess.com"]
[Source "ChessBase"]
[SourceQuality "1"]
[TimeControl "40/5400+30:1800+30"]

1. Nf3 {[%emt 0:00:00]} Nf6 {[%emt 0:00:20]} 2. d4 {[%emt 0:00:30]} e6 {[%emt 0:00:34]} 3. Bf4 {[%emt 0:01:27]} c5 {[%emt 0:02:30]} 4. c3 {[%emt 0:02:16]} b6 {[%emt 0:02:24]} 5. e3 {[%emt 0:02:04]} Bb7 {[%emt 0:00:43]} 6. Nbd2 {[%emt 0:00:29]} Be7 {[%emt 0:02:02]} 7. Bd3 {[%emt 0:01:03]} d5 {[%emt 0:01:23]} 8. O-O {[%emt 0:02:14]} O-O {[%emt 0:01:53]} 9. Re1 {[%emt 0:05:54]} Nbd7 {[%emt 0:08:28]} 10. Ng5 {[%emt 0:05:35]} h6 {[%emt 0:08:48]} 11. Nh3 {[%emt 0:04:55]} Re8 {[%emt 0:14:09]} 12. f3 {[%emt 0:02:52]} Nf8 {[%emt 0:05:46]} 13. Rc1 {[%emt 0:03:36]} Nh5 {[%emt 0:02:57]} 14. Bb1 {[%emt 0:04:40]} Nxf4 {[%emt 0:02:25]} 15. Nxf4 {[%emt 0:01:23]} Bf6 {[%emt 0:01:25]} 16. Nd3 {[%emt 0:04:08]} Nd7 {[%emt 0:04:47]} 17. dxc5 {[%emt 0:05:24]} bxc5 {[%emt 0:02:20]} 18. e4 {[%emt 0:01:16]} Qb6 {[%emt 0:02:45]} 19. Qc2 {[%emt 0:02:52]} c4+ {[%emt 0:06:33]} 20. Nf2 {[%emt 0:00:48]} g6 {[%emt 0:00:40]} 21. g3 {[%emt 0:03:45]} Nc5 {[%emt 0:03:30]} 22. Kg2 {[%emt 0:01:32]} Bg7 {[%emt 0:02:02]} 23. b3 {[%emt 0:02:55]} cxb3 {[%emt 0:02:12]} 24. axb3 {[%emt 0:00:23]} dxe4 {[%emt 0:02:14]} 25. Nfxe4 {[%emt 0:01:09]} Red8 {[%emt 0:01:43]} 26. Nxc5 {[%emt 0:04:33]} Qxc5 {[%emt 0:00:30]} 27. Ne4 {[%emt 0:02:22]} Qc6 {[%emt 0:02:06]} 28. Qe2 {[%emt 0:01:02]} Qb6 {[%emt 0:06:49]} 29. b4 {[%emt 0:03:01]} Rac8 {[%emt 0:04:44]} 30. Nc5 {[%emt 0:02:04]} Ba8 {[%emt 0:00:49]} 31. Be4 {[%emt 0:01:25]} Bxe4 {[%emt 0:01:34]} 32. Nxe4 {[%emt 0:00:23]} Rc7 {[%emt 0:00:55]} 33. Rc2 {[%emt 0:03:24]} Rdc8 {[%emt 0:01:22]} 34. Rec1 {[%emt 0:00:39]} Rc6 {[%emt 0:01:59]} 35. Qd2 {[%emt 0:01:29]} Rd8 {[%emt 0:00:32]} 36. Qe1 {[%emt 0:00:30]} Bf8 {[%emt 0:00:37]} 37. Nf6+ {[%emt 0:01:44]} Kh8 {[%emt 0:00:07]} 38. Ng4 {[%emt 0:01:01]} Bg7 {[%emt 0:00:42]} 39. c4 {[%emt 0:00:47]} Rc7 {[%emt 0:01:19]} 40. c5 {[%emt 0:01:57]} Qb5 {[%emt 0:00:28]} 41. Rc4 {[%emt 0:33:46]} Rd5 {[%emt 0:08:47]} 42. Ne3 {[%emt 0:00:00]} Rd3 {[%emt 0:01:44]} 43. Qe2 {[%emt 0:00:00]} Rb3 {[%emt 0:03:58]} 44. Nc2 {[%emt 0:00:00]} a5 {[%emt 0:06:56]} 45. bxa5 {[%emt 0:00:00]} Rxc5 {[%emt 0:02:59]} 46. Re4 {[%emt 0:00:00]} Qxe2+ {[%emt 0:03:04]} 47. Rxe2 {[%emt 0:00:00]} Rxa5 {[%emt 0:00:17]} 48. Ne3 {[%emt 0:00:00]} Raa3 {[%emt 0:03:54]} 49. Nc4 {[%emt 0:00:00]} Rc3 {[%emt 0:00:46]} 50. Rec2 {[%emt 0:00:00]} Rxc2+ {[%emt 0:00:49]} 51. Rxc2 {[%emt 0:00:00]} Rc3 {[%emt 0:00:15]} 52. Rxc3 {[%emt 0:00:00]} Bxc3 {[%emt 0:00:01]} 53. g4 {[%emt 0:00:00]} Kg7 {[%emt 0:01:00]} 54. Kg3 {[%emt 0:00:00]} e5 {[%emt 0:01:33]} 55. Ne3 {[%emt 0:00:00]} Be1+ {[%emt 0:00:32]} 56. Kg2 {[%emt 0:00:00]} Bd2 {[%emt 0:00:16]} 57. Nc4 {[%emt 0:00:00]} Bf4 {[%emt 0:00:56]} 58. h3 {[%emt 0:00:00]} f5 {[%emt 0:00:52]} 59. Nb6 {[%emt 0:02:00]} Bd2 {[%emt 0:00:48]} 60. Nc4 {[%emt 0:00:21]} Bc3 {[%emt 0:00:14]} 61. Ne3 {[%emt 0:01:37]} fxg4 {[%emt 0:00:46]} 62. hxg4 {[%emt 0:00:11]} Bd4 {[%emt 0:00:15]} 63. Nf1 {[%emt 0:00:12]} h5 {[%emt 0:00:47]} 64. gxh5 {[%emt 0:00:04]} gxh5 {[%emt 0:00:06]} 65. Ng3 {[%emt 0:00:04]} Kg6 {[%emt 0:00:33]} 66. Ne2 {[%emt 0:00:38]} Kf5 {[%emt 0:00:54]} 67. f4 {[%emt 0:00:25]} exf4 {[%emt 0:00:35]} 68. Nxd4+ {[%emt 0:00:16]} Kg4 {[%emt 0:00:15]} 69. Kh2 {[%emt 0:00:18]} h4 {[%emt 0:00:31]} 70. Kg2 {[%emt 0:00:05]} h3+ {[%emt 0:00:30]} 71. Kh2 {[%emt 0:00:02]} Kh4 {[%emt 0:00:17]} 72. Nf3+ {[%emt 0:00:13]} Kg4 {[%emt 0:00:10]} 73. Ng1 {[%emt 0:00:02]} f3 {[%emt 0:00:10]} 74. Nxf3 {[%emt 0:00:02]} Kxf3 {[%emt 0:00:05]} 75. Kxh3 {[%emt 0:00:04]} 1/2-1/2

[Event "NOR-ch Various 2019"]
[Site "Larvik"]
[Date "2019.07.06"]
[Round "1.7"]
[White "Lie, Gunnar"]
[Black "Gaure, Sigurd Lauvas"]
[Result "1/2-1/2"]
[ECO "C50"]
[WhiteElo "1788"]
[BlackElo "1657"]
[Annotator "NA"]
[PlyCount "81"]
[EventDate "2019.07.06"]
[EventType "swiss"]
[EventCountry "NOR"]
[SourceTitle "playchess.com"]
[Source "ChessBase"]
[SourceQuality "1"]
[TimeControl "40/5400+30:1800+30"]

1. d4 {[%emt 0:00:00]} g6 {[%emt 0:00:00]} 2. e4 {[%emt 0:00:15]} Bg7 {[%emt 0:00:00]} 3. Nc3 {[%emt 0:00:31]} d6 {[%emt 0:00:08]} 4. Bc4 {[%emt 0:01:14]} Nc6 {[%emt 0:00:52]} 5. Be3 {[%emt 0:01:24]} Nf6 {[%emt 0:00:34]} 6. f3 {[%emt 0:01:11]} O-O {[%emt 0:00:14]} 7. Qd2 {[%emt 0:00:45]} e5 {[%emt 0:00:33]} 8. Nge2 {[%emt 0:00:57]} exd4 {[%emt 0:01:24]} 9. Nxd4 {[%emt 0:00:14]} Nxd4 {[%emt 0:00:09]} 10. Bxd4 {[%emt 0:00:20]} Be6 {[%emt 0:00:11]} 11. Bb3 {[%emt 0:04:17]} Qe7 {[%emt 0:02:32]} 12. Be3 {[%emt 0:04:03]} c6 {[%emt 0:02:54]} 13. O-O {[%emt 0:04:08]} Bxb3 {[%emt 0:00:45]} 14. axb3 {[%emt 0:00:11]} d5 {[%emt 0:02:56]} 15. Bg5 {[%emt 0:05:26]} Qc5+ {[%emt 0:07:20]} 16. Be3 {[%emt 0:02:31]} Qe7 {[%emt 0:01:31]} 17. Bg5 {[%emt 0:13:07]} Qc5+ {[%emt 0:00:51]} 18. Qf2 {[%emt 0:03:39]} d4 {[%emt 0:05:14]} 19. Bd2 {[%emt 0:01:32]} Qd6 {[%emt 0:02:13]} 20. Ne2 {[%emt 0:02:39]} d3 {[%emt 0:05:43]} 21. Bf4 {[%emt 0:00:52]} Qd7 {[%emt 0:01:10]} 22. Rfd1 {[%emt 0:00:37]} Nh5 {[%emt 0:00:30]} 23. Rxd3 {[%emt 0:01:05]} Qe6 {[%emt 0:00:29]} 24. Rxa7 {[%emt 0:05:11]} Bxb2 {[%emt 0:01:48]} 25. Bc1 {[%emt 0:07:10]} Bxc1 {[%emt 0:02:07]} 26. Nxc1 {[%emt 0:00:10]} Nf4 {[%emt 0:00:17]} 27. Rd1 {[%emt 0:00:37]} Rfd8 {[%emt 0:01:25]} 28. Rxa8 {[%emt 0:00:55]} Rxa8 {[%emt 0:00:08]} 29. Qd4 {[%emt 0:01:06]} h5 {[%emt 0:04:52]} 30. Kf2 {[%emt 0:02:50]} Qe7 {[%emt 0:01:53]} 31. g3 {[%emt 0:01:03]} Ne6 {[%emt 0:00:21]} 32. Qe5 {[%emt 0:02:27]} b6 {[%emt 0:00:57]} 33. Nd3 {[%emt 0:00:41]} Ra2 {[%emt 0:02:14]} 34. Rd2 {[%emt 0:00:36]} b5 {[%emt 0:00:40]} 35. f4 {[%emt 0:00:57]} Qa7+ {[%emt 0:00:56]} 36. Kg2 {[%emt 0:05:07]} Qe3 {[%emt 0:02:09]} 37. Rf2 {[%emt 0:01:58]} Nd4 {[%emt 0:02:21]} 38. Qe8+ {[%emt 0:07:33]} Kg7 {[%emt 0:00:16]} 39. Qe5+ {[%emt 0:00:35]} Kg8 {[%emt 0:00:26]} 40. Qe8+ {[%emt 0:03:38]} Kg7 {[%emt 0:00:15]} 41. Qe5+ {[%emt 0:32:24]} 1/2-1/2